bitfinex-derivatives/quotes_ETHF0:USTF0_20250322
["timestamp","ask_amount","ask_price","bid_price","bid_amount"]
[1742633714772,7.39535,1989.8,1989.7,2.37945]
[1742633715681,7.39535,1989.8,1989.7,1.3739]
[1742633715979,4.18755,1989.8,1989.7,1.3739]
[1742633716982,1.00555,1989.8,1989.7,2.37945]
[1742633717283,4.18755,1989.8,1989.7,2.37945]
[1742633717884,4.18755,1989.8,1989.7,1.3739]
[1742633718574,4.18755,1989.8,1989.7,2.37945]
[1742633719385,4.18755,1989.8,1989.7,1.3739]
[1742633719584,4.18755,1989.8,1989.7,2.37945]
[1742633721091,3.182,1989.8,1989.7,2.37945]
[1742633721485,4.5502,1989.8,1989.7,2.37945]
[1742633722187,5.5557,1989.8,1989.7,2.37945]
[1742633722388,5.5557,1989.8,1989.7,3.03005]
[1742633726588,4.5502,1989.8,1989.7,3.03005]
[1742633729291,5.5557,1989.8,1989.7,3.03005]
[1742633730495,4.5502,1989.8,1989.7,3.03005]
[1742633730998,1.3682,1989.8,1989.7,3.03005]
[1742633731684,1.299,1990.1,1989.9,1.00545]
[1742633731685,0.6346,1990.1,1989.9,1.00545]
[1742633731890,3.8156,1990.1,1990.0,2.3795]
[1742633732091,4.82095,1990.1,1990.0,1.3741]
[1742633732797,5.73688567,1990.1,1990.0,1.3741]
[1742633732993,7.14228567,1990.1,1990.0,1.3741]
[1742633733301,7.93132269,1990.1,1990.0,1.3741]
[1742633733900,7.14228567,1990.1,1990.0,1.3741]
[1742633734290,6.22635,1990.1,1990.0,2.3795]
[1742633734800,6.22635,1990.1,1990.0,1.3741]
[1742633737393,6.89625,1990.1,1990.0,1.3741]
[1742633740497,6.22635,1990.1,1990.0,1.3741]
[1742633740695,3.04535,1990.1,1990.0,2.3795]
[1742633740997,2.04,1990.1,1990.0,2.3795]
[1742633742203,3.04535,1990.1,1990.0,2.3795]
[1742633742696,3.83591571,1990.1,1990.0,2.3795]
[1742633743001,4.75367296,1990.1,1990.0,2.3795]
[1742633744202,4.75367296,1990.1,1990.0,1.3741]
[1742633744600,4.75367296,1990.1,1990.0,2.3795]
[1742633746299,4.75367296,1990.1,1990.0,1.3741]
[1742633746500,1.0054,1990.0,1989.9,0.6365]
[1742633746698,2.3032,1990.0,1989.9,1.9911]
[1742633747505,2.3032,1990.0,1989.9,2.99655]
[1742633750107,2.3032,1990.0,1989.9,1.9911]
[1742633750300,2.3032,1990.0,1989.9,2.99655]
[1742633755011,1.2978,1990.0,1989.9,2.99655]
[1742633756302,2.3032,1990.0,1989.9,2.99655]
[1742633760109,1.2978,1990.0,1989.9,2.99655]
[1742633760306,2.3032,1990.0,1989.9,2.99655]
[1742633765314,3.09472151,1990.0,1989.9,2.99655]
[1742633769018,0.79152151,1990.0,1989.9,6.20435]
[1742633769227,1.71040939,1990.1,1990.0,1.0054]
[1742633769520,1.01285845,1990.2,1990.1,1.00535]
[1742633769718,0.00753845,1990.2,1990.1,5.54175]
[1742633769923,1.35403845,1990.2,1990.1,6.82355]
[1742633770221,2.14558783,1990.2,1990.1,6.82355]
[1742633770420,3.06444784,1990.2,1990.1,6.82355]
[1742633770821,4.06974784,1990.2,1990.1,6.82355]
[1742633771123,3.06444784,1990.2,1990.1,6.82355]
[1742633772323,2.14558783,1990.2,1990.1,6.82355]
[1742633772515,3.15088783,1990.2,1990.1,6.82355]
[1742633772917,2.35933845,1990.2,1990.1,6.82355]
[1742633773327,1.35403845,1990.2,1990.1,6.82355]
[1742633776227,1.35403845,1990.2,1990.1,3.61575]
[1742633778326,2.35933845,1990.2,1990.1,3.61575]
[1742633780628,1.35403845,1990.2,1990.1,3.61575]
[1742633782124,2.35933845,1990.2,1990.1,3.61575]
[1742633782328,1.35403845,1990.2,1990.1,3.61575]
[1742633785026,0.00753845,1990.2,1990.1,3.61575]
[1742633785437,1.30893845,1990.2,1990.1,3.61575]
[1742633790042,2.31423845,1990.2,1990.1,3.61575]
[1742633790242,1.30893845,1990.2,1990.1,3.61575]
[1742633791343,2.31423845,1990.2,1990.1,3.61575]
[1742633792044,0.00753845,1990.2,1990.1,3.61575]
[1742633792346,2.37663845,1990.2,1990.1,3.61575]
[1742633799140,1.37133845,1990.2,1990.1,3.61575]
[1742633802438,0.00753845,1990.2,1990.1,3.61575]
[1742633802839,2.32704765,1990.3,1990.1,2.6104]
[1742633803038,0.91874765,1990.3,1990.2,1.0053]
[1742633803349,4.09456178,1990.4,1990.3,1.00525]
[1742633803546,4.09456178,1990.4,1990.3,1.68275]
[1742633803752,2.38452,1990.4,1990.3,1.68275]
[1742633804247,2.38452,1990.4,1990.3,3.03135]
[1742633804447,1.3793,1990.4,1990.3,3.03135]
[1742633805042,2.3845,1990.4,1990.3,3.03135]
[1742633805242,1.3793,1990.4,1990.3,3.03135]
[1742633805645,2.3845,1990.4,1990.3,3.03135]
[1742633805847,1.3793,1990.4,1990.3,3.03135]
[1742633807048,2.17059413,1990.4,1990.3,3.03135]
[1742633807246,1.3793,1990.4,1990.3,3.03135]
[1742633815955,2.3845,1990.4,1990.3,3.03135]
[1742633816152,1.3793,1990.4,1990.3,3.03135]
[1742633816548,2.3845,1990.4,1990.3,3.03135]
[1742633817057,1.3793,1990.4,1990.3,3.03135]
[1742633817564,2.3845,1990.4,1990.3,3.03135]
[1742633818857,2.3845,1990.4,1990.3,2.35385]
[1742633819161,3.30249215,1990.4,1990.3,2.35385]
[1742633819459,3.1752012,1990.4,1990.3,2.35385]
[1742633819761,4.09319335,1990.4,1990.3,2.35385]
[1742633825161,3.1752012,1990.4,1990.3,2.35385]
[1742633825361,2.3845,1990.4,1990.3,3.02255]
[1742633829968,0.70033845,1990.5,1990.4,1.0052]
[1742633830161,3.09418845,1990.5,1990.4,3.0137]
[1742633830466,2.08903845,1990.5,1990.4,3.0137]
[1742633830666,3.09418845,1990.5,1990.4,3.0137]
[1742633831063,3.09418845,1990.5,1990.4,2.0085]
[1742633831268,3.09418845,1990.5,1990.4,3.0137]
[1742633831466,3.09418845,1990.5,1990.4,2.0085]
[1742633832269,3.09418845,1990.5,1990.4,3.0137]
[1742633836473,3.09418845,1990.5,1990.4,2.3443]
[1742633836678,3.09418845,1990.5,1990.4,1.3391]
[1742633837381,3.75378845,1990.5,1990.4,1.3391]
[1742633837572,5.4636538,1990.5,1990.4,1.3391]
[1742633839883,4.54504496,1990.5,1990.4,1.3391]
[1742633840077,3.75378845,1990.5,1990.4,1.3391]
[1742633840281,4.54504496,1990.5,1990.4,1.3391]
[1742633840485,3.75378845,1990.5,1990.4,1.3391]
[1742633842179,1.00525,1990.3,1990.2,3.21533845]
[1742633842885,1.70885,1990.3,1990.2,3.21533845]
[1742633843278,1.70885,1990.3,1990.2,1.01283845]
[1742633843479,1.70885,1990.3,1990.2,2.35133845]
[1742633845877,1.70885,1990.3,1990.2,1.34603845]
[1742633846487,1.70885,1990.3,1990.2,2.35133845]
[1742633847193,2.36572,1990.4,1990.3,1.00525]
[1742633847385,2.36572,1990.4,1990.3,3.01965]
[1742633847992,2.36572,1990.4,1990.3,3.66175]
[1742633848488,1.3605,1990.4,1990.3,3.66175]
[1742633848892,2.3657,1990.4,1990.3,3.66175]
[1742633854889,2.3657,1990.4,1990.3,2.6565]
[1742633855290,2.3657,1990.4,1990.3,2.0144]
[1742633855798,2.3657,1990.4,1990.3,3.01965]
[1742633858593,2.3657,1990.4,1990.3,2.0144]
[1742633861199,3.0225,1990.4,1990.3,1.3271]
[1742633861401,3.81378284,1990.4,1990.3,1.3271]
[1742633862496,3.0225,1990.4,1990.3,1.3271]
[1742633868509,6.2005,1990.4,1990.3,1.3271]
[1742633871208,1.00525,1990.3,1990.2,0.00753845]
[1742633871405,2.41495,1990.3,1990.2,1.29293845]
[1742633871711,1.0054,1990.0,1989.9,5.872]
[1742633871908,1.0054,1990.0,1989.9,1.00545]
[1742633872107,1.0054,1990.0,1989.9,1.66705]
[1742633872302,1.0054,1990.0,1989.9,0.6616]
[1742633873112,1.0054,1990.0,1989.9,1.9888]
[1742633873113,2.3603,1990.0,1989.9,1.9888]
[1742633874518,2.3603,1990.0,1989.9,2.99425]
[1742633875214,2.3603,1990.0,1989.9,1.9888]
[1742633887025,2.3603,1990.0,1989.9,2.99425]
[1742633887525,2.3603,1990.0,1989.9,1.9888]
[1742633887825,2.3603,1990.0,1989.9,2.99425]
[1742633888025,2.3603,1990.0,1989.9,1.9888]
[1742633889329,3.005,1990.0,1989.9,1.3272]
[1742633891231,6.2128,1990.0,1989.9,1.3272]
[1742633891626,1.00545,1989.9,1989.8,0.00753845]
[1742633891831,5.2515,1989.9,1989.6,3.2078]
[1742633892033,1.678,1989.8,1989.7,1.2768]
[1742633892329,3.0615,1989.8,1989.7,1.2768]
[1742633895220,3.0615,1989.8,1989.6,0.0050256]
[1742633895221,1.00555,1989.7,1989.6,0.0050256]
[1742633895420,1.00555,1989.7,1989.3,1.00571]
[1742633895421,7.85103946,1989.7,1989.2,4.21357]
[1742633895622,7.85103946,1989.7,1989.2,4.91577]
[1742633895623,1.00576,1989.3,1989.2,4.91577]
[1742633896637,1.00576,1989.3,1989.2,3.91]
[1742633896833,2.37476,1989.3,1989.2,5.2775]
[1742633900031,0.00753845,1989.4,1989.3,1.00576]
[1742633900235,0.00753845,1989.4,1989.3,2.29606]
[1742633903236,0.00753845,1989.4,1989.3,5.50386]
[1742633904739,1.01324845,1989.4,1989.3,5.50386]
[1742633907345,2.35094845,1989.4,1989.3,5.50386]
[1742633913849,2.35094845,1989.4,1989.3,4.4981]
[1742633914653,2.35094845,1989.4,1989.3,5.50386]
[1742633916151,2.35094845,1989.4,1989.3,2.29606]
[1742633916949,2.35094845,1989.4,1989.3,1.2903]
[1742633917658,2.35094845,1989.4,1989.3,2.29606]
[1742633919959,2.35094845,1989.4,1989.3,1.2903]
[1742633922060,2.35094845,1989.4,1989.3,2.29606]
[1742633923659,2.35094845,1989.4,1989.3,1.2903]
[1742633925767,2.35094845,1989.4,1989.3,2.29606]
[1742633925957,2.35094845,1989.4,1989.3,1.2903]
[1742633928563,2.35094845,1989.4,1989.3,2.29606]
[1742633928966,2.35094845,1989.4,1989.3,1.2903]
[1742633930267,2.35094845,1989.4,1989.3,2.29606]
[1742633933167,1.34523845,1989.4,1989.3,2.29606]
[1742633933373,0.00753845,1989.4,1989.3,2.29606]
[1742633933571,1.01324845,1989.4,1989.3,2.29606]
[1742633933772,0.00753845,1989.4,1989.3,2.29606]
[1742633934273,1.29333845,1989.4,1989.3,2.29606]
[1742633935272,2.29904845,1989.4,1989.3,2.29606]
[1742633942583,2.29904845,1989.4,1989.3,1.2903]
[1742633944673,2.29904845,1989.4,1989.3,2.29606]
[1742633945478,0.00753845,1989.4,1989.3,2.29606]
[1742633951589,2.31244845,1989.4,1989.3,2.29606]
[1742633953290,2.31244845,1989.4,1989.3,5.50386]
[1742633954995,1.30673845,1989.4,1989.3,5.50386]
[1742633956308,2.31244845,1989.4,1989.3,5.50386]
[1742633958301,2.31244845,1989.4,1989.3,4.4981]
[1742633959104,2.95044845,1989.4,1989.3,4.4981]
[1742633959707,2.95044845,1989.4,1989.3,3.2078]
[1742633960910,1.00576,1989.3,1989.2,2.30568]
[1742633961112,3.07376,1989.3,1989.2,5.51348]
[1742633966811,2.38636,1989.3,1989.2,5.51348]
[1742633967012,2.38636,1989.3,1989.2,6.19618]
[1742633980424,2.38636,1989.3,1989.2,5.1904]
[1742633982023,2.38636,1989.3,1989.2,4.5077]
[1742633982229,3.08616,1989.3,1989.2,5.51351]
[1742633982731,6.26316,1989.3,1989.2,5.51351]
[1742633983423,6.26316,1989.3,1989.2,4.5077]
[1742633984329,6.26316,1989.3,1989.2,5.51351]
[1742633985026,6.26316,1989.3,1989.2,4.5077]
[1742633986731,6.26316,1989.3,1989.2,5.51351]
[1742633987430,5.56336,1989.3,1989.2,5.51351]
[1742633987727,5.56336,1989.3,1989.2,6.15131]
[1742633988232,5.56336,1989.3,1989.2,2.94351]
[1742633988431,5.56336,1989.3,1989.2,6.15131]
[1742633990929,5.56336,1989.3,1989.2,2.94351]
[1742633991129,5.56336,1989.3,1989.2,6.15131]
[1742633993037,5.56336,1989.3,1989.2,2.94351]
[1742633993239,5.56336,1989.3,1989.2,6.15131]
[1742633996044,5.56336,1989.3,1989.2,5.1455]
[1742633996434,5.56336,1989.3,1989.2,3.2078]
[1742633996643,6.23796,1989.3,1989.2,3.2078]
[1742633997139,6.23796,1989.3,1989.2,4.5256]
[1742633998642,6.23796,1989.3,1989.2,5.53141]
[1742634000240,6.23796,1989.3,1989.2,4.5256]
[1742634000946,6.23796,1989.3,1989.2,5.53141]
[1742634002144,5.56336,1989.3,1989.2,5.53141]
[1742634002440,4.5576,1989.3,1989.2,5.53141]
[1742634002839,5.56336,1989.3,1989.2,5.53141]
[1742634003242,4.5576,1989.3,1989.2,5.53141]
[1742634003542,5.56336,1989.3,1989.2,5.53141]
[1742634004046,4.5576,1989.3,1989.2,5.53141]
[1742634004744,0.00753845,1989.4,1989.3,1.00576]
[1742634004957,3.177,1989.6,1989.4,2.51423]
[1742634005160,2.2288326,1989.7,1989.6,1.0056]
[1742634005448,0.9191326,1989.7,1989.6,2.9294]
[1742634005643,3.177,1989.7,1989.6,2.9294]
[1742634006452,4.4867,1989.7,1989.6,2.9294]
[1742634006752,1.3097,1989.7,1989.6,2.9294]
[1742634008646,2.31525,1989.7,1989.6,2.9294]
[1742634009551,1.3097,1989.7,1989.6,2.9294]
[1742634009947,2.31525,1989.7,1989.6,2.9294]
[1742634010253,1.3097,1989.7,1989.6,2.9294]
[1742634010953,3.18453845,1989.8,1989.7,1.00555]
[1742634011156,4.51033845,1989.8,1989.7,2.37855]
[1742634012253,5.51583845,1989.8,1989.7,2.37855]
[1742634012555,5.51583845,1989.8,1989.7,5.58635]
[1742634014754,5.51583845,1989.8,1989.7,4.5808]
[1742634014957,5.51583845,1989.8,1989.7,5.58635]
[1742634015456,5.51583845,1989.8,1989.7,6.27645]
[1742634016849,1.33333845,1989.8,1989.7,6.27645]
[1742634019061,2.33883845,1989.8,1989.7,6.27645]
[1742634020151,1.33333845,1989.8,1989.7,6.27645]
[1742634021659,0.00753845,1989.8,1989.7,6.27645]
[1742634026246,1.37203845,1989.8,1989.7,6.27645]
[1742634029160,0.00753845,1989.8,1989.7,6.27645]
[1742634029561,1.39253845,1989.8,1989.7,6.27645]
[1742634035456,1.39253845,1989.8,1989.7,3.06865]
[1742634035664,1.39253845,1989.8,1989.7,6.27645]
[1742634055272,2.08133845,1989.8,1989.7,6.27645]
[1742634057183,2.08133845,1989.8,1989.7,3.06865]
[1742634057379,2.08133845,1989.8,1989.7,6.27645]
[1742634067781,2.08133845,1989.8,1989.7,5.58635]
[1742634068288,2.71833845,1989.8,1989.7,5.58635]
[1742634068790,3.72383845,1989.8,1989.7,1.373]
[1742634068979,1.00555,1989.7,1989.6,0.705]
[1742634069181,2.35765,1989.7,1989.6,2.0083]
[1742634069379,2.35765,1989.7,1989.6,1.3033]
[1742634070190,2.35765,1989.7,1989.6,2.30886]
[1742634070586,2.35765,1989.7,1989.6,1.00556]
[1742634070789,2.35765,1989.7,1989.6,2.28436]
[1742634071088,1.3521,1989.7,1989.6,2.28436]
[1742634071589,1.3521,1989.7,1989.6,2.95476]
[1742634075290,1.3521,1989.7,1989.6,6.16256]
[1742634075884,1.3521,1989.7,1989.6,6.85076]
[1742634076383,1.3521,1989.7,1989.6,47.65076]
[1742634079396,0.00753845,1989.8,1989.7,1.00555]
[1742634079689,1.37943845,1989.8,1989.7,2.30525]
[1742634080487,0.00753845,1989.8,1989.7,2.30525]
[1742634087092,0.00753845,1989.8,1989.7,2.30525]
[1742634092788,0.00753845,1989.8,1989.7,5.51305]
[1742634100203,0.00753845,1989.8,1989.7,2.30525]
[1742634100705,0.00753845,1989.8,1989.7,5.51305]
[1742634101394,0.00753845,1989.8,1989.7,2.30525]
[1742634101594,0.00753845,1989.8,1989.7,5.51305]
[1742634107708,5.72064,1990.6,1989.8,2.5137]
[1742634108002,1.00521,1990.4,1990.3,1.00522]
[1742634109103,4.84961845,1990.5,1990.4,1.0052]
[1742634109298,4.84961845,1990.5,1990.2,3.8827]
[1742634109495,4.84961845,1990.5,1990.4,1.0052]
[1742634109700,1.00521,1990.4,1990.3,1.00521]
[1742634110907,2.39771,1990.4,1990.3,1.00521]
[1742634111812,1.3925,1990.4,1990.3,1.00521]
[1742634112409,2.3977,1990.4,1990.3,1.00521]
[1742634114006,1.00525,1990.3,1990.2,3.2078]
[1742634114214,1.0053,1990.2,1990.1,1.00532]
[1742634114412,1.70942,1990.2,1990.1,1.00535]
[1742634114612,3.11292,1990.2,1990.1,1.00535]
[1742634115107,3.11293,1990.2,1990.1,1.00535]
[1742634115510,3.11293,1990.2,1990.0,4.21318]
[1742634115511,2.1076,1990.2,1990.0,4.21318]
[1742634115702,1.4035,1990.1,1990.0,4.21318]
[1742634117522,4.82978,1990.3,1990.2,1.0053]
[1742634118926,6.17158,1990.3,1990.2,1.0053]
[1742634119317,5.1663,1990.3,1990.2,1.6789]
[1742634119518,4.5158,1990.3,1990.2,5.5395]
[1742634119830,1.3418,1990.3,1990.2,5.5395]
[1742634124634,1.3418,1990.3,1990.2,2.3317]
[1742634124835,1.3418,1990.3,1990.2,5.5395]
[1742634125132,4.85990845,1990.5,1990.4,1.0052]
[1742634125333,5.53660845,1990.5,1990.4,1.0052]
[1742634125826,2.36260845,1990.5,1990.4,1.0052]
[1742634126030,1.35743845,1990.5,1990.4,1.0052]
[1742634126228,0.00753845,1990.5,1990.4,1.0052]
[1742634128335,0.00753845,1990.5,1990.4,4.213]
[1742634128533,1.01268845,1990.5,1990.4,4.213]
[1742634129035,0.00753845,1990.5,1990.4,4.213]
[1742634130833,1.01268845,1990.5,1990.4,4.213]
[1742634131129,2.37538845,1990.5,1990.4,4.213]
[1742634134341,1.37023845,1990.5,1990.4,4.213]
[1742634134841,0.00753845,1990.5,1990.4,4.213]
[1742634135042,1.01268845,1990.5,1990.4,4.213]
[1742634135242,0.00753845,1990.5,1990.4,4.213]
[1742634135542,1.01268845,1990.5,1990.4,4.213]
[1742634135744,1.31953845,1990.5,1990.4,4.213]
[1742634135938,0.00753845,1990.5,1990.4,4.213]
[1742634136638,1.01268845,1990.5,1990.4,4.213]
[1742634136834,0.00753845,1990.5,1990.4,4.213]
[1742634137033,1.01268845,1990.5,1990.4,4.213]
[1742634137234,2.32468845,1990.5,1990.4,4.213]
[1742634138139,1.31953845,1990.5,1990.4,4.213]
[1742634138446,0.00753845,1990.5,1990.4,4.213]
[1742634145752,0.00753845,1990.5,1990.4,4.8761]
[1742634147050,0.00753845,1990.5,1990.4,6.1648]
[1742634149545,1.31133845,1990.5,1990.4,6.1648]
[1742634151144,2.31648845,1990.5,1990.4,6.1648]
[1742634151352,2.31648845,1990.5,1990.4,4.4965]
[1742634152353,2.31648845,1990.5,1990.4,5.5017]
[1742634153347,1.31133845,1990.5,1990.4,5.5017]
[1742634153541,0.00753845,1990.5,1990.4,5.5017]
[1742634164561,1.31953845,1990.5,1990.4,5.5017]
[1742634171553,1.31953845,1990.5,1990.4,2.2939]
[1742634171762,1.31953845,1990.5,1990.4,5.5017]
[1742634173666,1.31953845,1990.5,1990.4,6.0847]
[1742634175566,1.31953845,1990.5,1990.4,6.096]
[1742634176568,1.31953845,1990.5,1990.4,6.791]
[1742634179267,1.31953845,1990.5,1990.4,3.6454]
[1742634179768,1.31953845,1990.5,1990.4,6.8532]
[1742634180967,1.31953845,1990.5,1990.4,6.9031]
[1742634181278,2.32468845,1990.5,1990.4,6.9031]
[1742634181472,1.31953845,1990.5,1990.4,6.9031]
[1742634184870,1.31953845,1990.5,1990.4,3.6953]
[1742634185174,0.00753845,1990.5,1990.4,6.9031]
[1742634188670,1.35383845,1990.5,1990.4,6.9031]
[1742634189369,1.35383845,1990.5,1990.4,3.6953]
[1742634189766,1.35383845,1990.5,1990.4,6.9031]
[1742634192662,1.35383845,1990.5,1990.4,3.6953]
[1742634193369,1.35383845,1990.5,1990.4,6.9031]
[1742634194570,0.00753845,1990.5,1990.4,6.9031]
[1742634195473,1.39463845,1990.5,1990.4,6.9031]
[1742634197779,2.39978845,1990.5,1990.4,6.9031]
[1742634197981,1.39463845,1990.5,1990.4,6.9031]
[1742634198172,2.39978845,1990.5,1990.4,6.9031]
[1742634199370,1.39463845,1990.5,1990.4,6.9031]
[1742634200279,2.39978845,1990.5,1990.4,6.2081]
[1742634200772,3.09868845,1990.5,1990.4,6.2081]
[1742634201480,3.09868845,1990.5,1990.4,6.8775]
[1742634203579,3.09868845,1990.5,1990.4,5.2029]
[1742634204776,3.09868845,1990.5,1990.4,6.2081]
[1742634207381,3.09868845,1990.5,1990.4,3.0003]
[1742634207881,3.09868845,1990.5,1990.4,6.2081]
[1742634208082,2.09353845,1990.5,1990.4,6.2081]
[1742634208686,1.39463845,1990.5,1990.4,6.2081]
[1742634208984,0.00753845,1990.5,1990.4,6.2081]
[1742634213484,0.00753845,1990.5,1990.4,9.3791]
[1742634217381,0.00753845,1990.5,1990.4,10.0682]
[1742634219590,1.3643,1990.7,1990.6,1.0051]
[1742634219791,1.3643,1990.7,1990.6,4.2129]
[1742634220187,1.3643,1990.7,1990.6,6.2578]
[1742634221594,0.00753845,1990.8,1990.7,1.00505]
[1742634221794,1.32263845,1990.8,1990.7,2.37275]
[1742634222493,1.32263845,1990.8,1990.7,2.95575]
[1742634222699,1.32263845,1990.8,1990.7,2.96705]
[1742634223488,1.32263845,1990.8,1990.7,3.07905]
[1742634226306,2.32763845,1990.8,1990.7,3.07905]
[1742634226696,1.32263845,1990.8,1990.7,3.42975]
[1742634228498,2.32763845,1990.8,1990.7,3.42975]
[1742634236807,2.32763845,1990.8,1990.7,2.4247]
[1742634237006,2.96603845,1990.8,1990.7,1.057]
[1742634237510,3.75770996,1990.8,1990.7,1.057]
[1742634237900,3.88436738,1990.8,1990.7,1.057]
[1742634238305,2.96603845,1990.8,1990.7,1.057]
[1742634238503,2.96603845,1990.8,1990.7,2.3755]
[1742634241100,2.96603845,1990.8,1990.7,1.057]
[1742634241409,6.13703845,1990.8,1990.7,1.057]
[1742634242405,2.5127,1990.7,1990.3,5.872]
[1742634242611,1.00526,1990.3,1990.2,1.4089]
[1742634243906,1.70536,1990.3,1990.2,1.4089]
[1742634244302,1.70536,1990.3,1990.2,2.4142]
[1742634244810,1.70536,1990.3,1990.2,1.4089]
[1742634245909,1.0053,1990.2,1990.1,0.00753845]
[1742634246111,2.2869,1990.2,1990.1,0.00753845]
[1742634246815,5.4579,1990.2,1990.1,0.00753845]
[1742634247015,5.5046,1990.2,1990.1,0.00753845]
[1742634249319,1.00545,1989.9,1989.8,1.2857]
[1742634249913,2.32785,1989.9,1989.8,1.2857]
[1742634250616,2.32785,1989.9,1989.8,2.2912]
[1742634252420,3.171,1990.0,1989.9,1.00545]
[1742634252621,3.171,1990.0,1989.9,2.27475]
[1742634253516,3.171,1990.0,1989.9,5.48255]
[1742634253717,2.35477,1990.1,1990.0,1.0054]
[1742634253917,2.35477,1990.1,1990.0,3.7125]
[1742634254118,2.35477,1990.1,1990.0,2.7071]
[1742634254318,2.35477,1990.1,1990.0,3.7125]
[1742634254524,3.171,1990.2,1990.0,3.7125]
[1742634254715,1.00535,1990.1,1990.0,2.3704]
[1742634254916,2.29375,1990.1,1990.0,2.3704]
[1742634255116,2.29375,1990.1,1990.0,1.365]
[1742634259219,2.29375,1990.1,1990.0,2.3704]
[1742634259722,1.00535,1990.1,1990.0,2.3704]
[1742634259914,3.171,1990.2,1990.1,1.00535]
[1742634260118,3.171,1990.2,1990.1,4.21315]
[1742634260519,1.0053,1990.2,1990.1,4.21315]
[1742634260920,5.47529,1990.3,1990.2,1.0053]
[1742634262126,1.00525,1990.3,1990.2,1.0053]
[1742634263234,4.17624,1990.4,1990.3,1.00525]
[1742634264035,1.00524,1990.4,1990.3,1.00525]
[1742634264632,3.171,1990.5,1990.4,1.0052]
[1742634264835,4.17612,1990.6,1990.5,1.00515]
[1742634265135,4.1761,1990.7,1990.6,1.0051]
[1742634265332,4.1761,1990.7,1990.6,2.2974]
[1742634266529,4.1761,1990.7,1990.6,1.2923]
[1742634267126,5.512,1990.7,1990.6,1.2923]
[1742634268428,5.512,1990.7,1990.6,2.6402]
[1742634270528,6.30234888,1990.7,1990.6,1.3479]
[1742634270734,1.00515,1990.5,1990.4,0.6414]
[1742634271041,1.00515,1990.5,1990.4,1.9877]
[1742634271441,3.01815,1990.5,1990.4,1.9877]
[1742634271741,6.18915,1990.5,1990.4,1.9877]
[1742634274848,6.97976467,1990.5,1990.4,1.3463]
[1742634275042,6.18915,1990.5,1990.4,1.3463]
[1742634275542,1.00525,1990.3,1990.2,0.6756]
[1742634277053,1.00525,1990.3,1990.2,3.0049]
[1742634277939,1.00525,1990.3,1990.2,1.9996]
[1742634279640,1.00525,1990.3,1990.2,1.324]
[1742634279844,4.17625,1990.3,1990.2,1.324]
[1742634284951,5.57565,1990.3,1990.2,1.324]
[1742634285349,5.57565,1990.3,1990.2,2.3293]
[1742634286458,4.17625,1990.3,1990.2,2.3293]
[1742634287046,3.171,1990.3,1990.2,2.3293]
[1742634288153,4.17625,1990.3,1990.2,2.3293]
[1742634288542,1.00525,1990.3,1990.2,2.3293]
[1742634288744,5.57563,1990.4,1990.3,1.00525]
[1742634288947,5.57563,1990.4,1990.3,3.63965]
[1742634291549,5.57563,1990.4,1990.3,2.6344]
[1742634291749,5.57563,1990.4,1990.3,3.63965]
[1742634293355,5.57563,1990.4,1990.3,2.6344]
[1742634295250,5.57563,1990.4,1990.3,3.63965]
[1742634301871,3.171,1990.4,1990.3,3.63965]
[1742634302379,5.54999,1990.5,1990.4,1.0052]
[1742634302674,9.10213845,1990.8,1990.5,1.00512]
[1742634302874,1.3738,1990.6,1990.3,0.6734]
[1742634303065,4.17618,1990.5,1990.4,1.00516]
[1742634303267,1.00518,1990.5,1990.4,1.00516]
[1742634304870,5.54994,1990.6,1990.5,1.00515]
[1742634305378,6.34238123,1990.6,1990.5,1.00515]
[1742634305678,6.25635643,1990.6,1990.3,3.18645]
[1742634305973,5.0952452,1990.6,1990.5,1.00515]
[1742634306171,4.96846986,1990.6,1990.5,1.00515]
[1742634306570,6.32416986,1990.6,1990.5,1.00515]
[1742634306775,7.24328506,1990.6,1990.5,1.00515]
[1742634307180,4.07228506,1990.6,1990.5,1.00515]
[1742634307374,6.4499452,1990.6,1990.5,1.00515]
[1742634307574,7.24228506,1990.6,1990.5,1.00515]
[1742634307977,1.00518,1990.5,1990.4,1.00516]
[1742634308170,3.12941986,1990.5,1990.4,1.00516]
[1742634308574,2.33708,1990.5,1990.4,1.00516]
[1742634308775,3.2561952,1990.5,1990.4,1.00516]
[1742634309173,3.04316142,1990.5,1990.4,1.00516]
[1742634309574,2.2510152,1990.5,1990.4,1.00516]
[1742634310073,1.3319,1990.5,1990.4,1.00516]
[1742634310273,2.33705,1990.5,1990.4,1.00516]
[1742634310472,3.2561652,1990.5,1990.4,1.00516]
[1742634311182,2.33705,1990.5,1990.4,1.00516]
[1742634312185,3.25586819,1990.5,1990.4,1.00516]
[1742634313081,1.0052,1990.4,1990.3,1.67862]
[1742634313281,2.3332,1990.4,1990.3,1.67862]
[1742634314077,1.328,1990.4,1990.3,1.67862]
[1742634314485,1.00519,1990.5,1990.4,1.0052]
[1742634314682,2.33279,1990.5,1990.4,1.0052]
[1742634315783,2.33279,1990.5,1990.4,1.6646]
[1742634318486,2.33279,1990.5,1990.4,3.0598]
[1742634322287,2.33279,1990.5,1990.4,2.0546]
[1742634323488,3.25202886,1990.5,1990.4,1.3952]
[1742634323689,4.04453851,1990.5,1990.4,1.3952]
[1742634323989,3.25202886,1990.5,1990.4,1.3952]
[1742634324385,3.25202886,1990.5,1990.4,2.4004]
[1742634324583,2.33279,1990.5,1990.4,2.0876]
[1742634325382,3.1254076,1990.5,1990.4,2.0876]
[1742634325582,4.04477599,1990.5,1990.4,2.0876]
[1742634325782,3.25215839,1990.5,1990.4,2.0876]
[1742634325982,2.33279,1990.5,1990.4,2.0876]
[1742634326280,2.33279,1990.5,1990.4,3.0928]
[1742634326684,3.12544238,1990.5,1990.4,3.0928]